fUSD/lending_fUSD_20240530
["ID","MTS","AMOUNT","RATE_DAILY","PERIOD"]
[328217188,1717069841416,-150.84,0.0002912,2]
[328217189,1717069841425,-150.0,0.00029123,2]
[328217190,1717069841435,-150.0,0.00029126,2]
[328217191,1717069841444,-207.79137545,0.00029127,2]
[328217192,1717069841453,-645.00016634,0.00029127,2]
[328217193,1717069841462,-410.08555038,0.00029127,2]
[328217194,1717069841474,-268.36796615,0.00029127,2]
[328217195,1717069841483,-1615.44437713,0.00029128,2]
[328217196,1717069841492,-94824.0425841,0.00029128,2]
[328217197,1717069841500,-523.81480906,0.00029129,2]
[328217198,1717069841509,-529.6006328,0.00029129,2]
[328217199,1717069841519,-500.0,0.00029129,7]
[328217200,1717069841528,-500.0,0.00029129,7]
[328217201,1717069841537,-500.0,0.00029129,7]
[328217202,1717069841546,-500.0,0.00029129,7]
[328217203,1717069841556,-500.0,0.00029129,7]
[328217204,1717069841565,-500.0,0.00029129,7]
[328217205,1717069841574,-500.0,0.00029129,7]
[328217206,1717069841583,-21101.91460273,0.0002913,13]
[328217207,1717069841596,-14704.95876432,0.0002913,13]
[328217208,1717069841605,-16749.72335893,0.0002913,10]
[328217209,1717069841616,-2538.91574306,0.0002913,10]
[328217210,1717069841627,-1353.85632902,0.0002913,10]
[328217238,1717069843120,-150.0,0.00028697,2]
[328217240,1717069843130,-500.0,0.00028957,7]
[328217242,1717069843140,-187.85090234,0.00028957,7]
[328217247,1717069843176,-312.14909766,0.00028957,7]
[328217249,1717069843186,-457.46955249,0.0002913,10]
[328217251,1717069843200,-1381.05676272,0.0002913,10]
[328217253,1717069843211,-7062.5,0.0002913,10]
[328217256,1717069843224,-19236.37115591,0.0002913,10]
[328217258,1717069843236,-14611.68000001,0.0002913,10]
[328217260,1717069843248,-5003.48713317,0.0002913,10]
[328217263,1717069843264,-31163.65570128,0.0002913,10]
[328217278,1717069843397,-150.0,0.00029108,2]
[328217280,1717069843406,-626.22572096,0.0002913,10]
[328217286,1717069843453,-2850.0,0.0002913,10]
[328217303,1717069843611,-9964.63341854,0.0002913,10]
[328217306,1717069843631,-1923.58109648,0.0002913,10]
[328217308,1717069843642,-1925.8559374,0.0002913,10]
[328217310,1717069843657,-491.70245389,0.0002913,10]
[328217313,1717069843668,-723.03641797,0.0002913,10]
[328217315,1717069843684,-7450.2528571,0.0002913,10]
[328217398,1717069846335,-1069.7892,0.000287,2]
[328217399,1717069846346,-2395.6578,0.00028857,2]
[328217400,1717069846355,-323.88369224,0.00028858,2]
[328217401,1717069846365,-599.41,0.00028957,7]
[328217402,1717069846375,-500.0,0.00028957,7]
[328217403,1717069846384,-1234.50992153,0.00029129,2]
[328217404,1717069846393,-2585.07350057,0.0002913,10]
[328217405,1717069846412,-5046.00802616,0.0002913,10]
[328217406,1717069846450,-548.913,0.0002913,10]
[328217407,1717069846464,-2807.15705431,0.0002913,10]
[328217408,1717069846479,-6000.02408429,0.0002913,10]
[328217409,1717069846506,-608372.48629044,0.0002913,10]
[328217412,1717070006884,200.0,0.00031396,120]
[328217413,1717070009459,200.0,0.00032014,120]
[328217414,1717070136579,184.06,0.00026859,120]
[328217416,1717070519933,155.91,0.00013973,2]
[328217419,1717070937860,-563.83043187,0.000321,30]
[328217420,1717070937889,-199.053017,0.00032248,40]
[328217421,1717070937912,-199.053017,0.00032348,40]
[328217422,1717070937937,-199.053017,0.00032448,40]
[328217423,1717070938175,-256.75489393,0.000329,30]
[328217424,1717070938310,-1160.98948287,0.000329,30]
[328217425,1717070938334,-839.01051713,0.00032984,31]
[328217426,1717070938870,-160.98948287,0.00032984,31]
[328217427,1717070938999,-2000.0,0.00032986,30]
[328217428,1717070939020,-22372.26614033,0.00033,30]
[328217437,1717071032298,-783.00658811,0.00017231,2]
[328217439,1717071032308,-162.9377334,0.00017232,2]
[328217441,1717071032317,-334.61574708,0.00017258,2]
[328217443,1717071032355,-325.11607231,0.00017258,2]
[328217444,1717071032366,-7639.2753506,0.00017259,2]
[328217445,1717071032376,-150.0,0.00017259,2]
[328217446,1717071032385,-210.0,0.00018985,2]
[328217447,1717071032396,-1382.72,0.00019726,2]
[328217448,1717071032405,-1678.0,0.000235,2]
[328217449,1717071032415,-150.99,0.000235,2]
[328217450,1717071032425,-299.99,0.000235,7]
[328217451,1717071032435,-499.99,0.000235,2]
[328217452,1717071032445,-245.09,0.00024943,2]
[328217453,1717071032455,-250.0,0.00026725,2]
[328217454,1717071032463,-200.0,0.00026729,2]
[328217455,1717071032474,-833.33,0.00026806,2]
[328217456,1717071032483,-1091.26,0.0002688,2]
[328217457,1717071032492,-23890.0,0.00026978,2]
[328217458,1717071032501,-155.14,0.00027007,2]
[328217459,1717071032510,-150.0,0.0002703,2]
[328217460,1717071032520,-150.0,0.00027207,2]
[328217461,1717071032529,-245.09,0.00027207,2]
[328217462,1717071032538,-150.0,0.00027228,2]
[328217463,1717071032547,-150.0,0.00027672,2]
[328217464,1717071032556,-150.0,0.00027704,2]
[328217465,1717071032565,-150.0,0.00027713,2]
[328217466,1717071032575,-150.0,0.00028149,2]
[328217467,1717071032584,-150.0,0.0002817,2]
[328217468,1717071032593,-445.713,0.00028207,2]
[328217469,1717071032602,-150.0,0.0002834,2]
[328217470,1717071032611,-150.0,0.0002856,2]
[328217471,1717071032620,-1500.0,0.0002862,2]
[328217472,1717071032629,-150.0,0.00028643,2]
[328217473,1717071032638,-281.71,0.00028757,2]
[328217474,1717071032647,-150.0,0.00028769,2]
[328217475,1717071032656,-1500.0,0.00028777,2]
[328217476,1717071032666,-181.01615819,0.00028787,10]
[328217477,1717071032675,-150.0,0.00028796,2]
[328217478,1717071032683,-594.9124,0.000288,2]
[328217479,1717071032693,-300.0,0.000288,10]
[328217480,1717071032703,-383.45368792,0.00028855,2]
[328217481,1717071032712,-195.07618324,0.00028856,2]
[328217492,1717071032905,-1000.0,0.00028857,2]
[328217494,1717071032915,-132998.1855,0.00028857,2]
[328217496,1717071032924,-500.0,0.00028895,2]
[328217498,1717071032933,-500.0,0.00028896,2]
[328217501,1717071032942,-500.0,0.00028896,2]
[328217504,1717071032951,-200.0,0.00028896,2]
[328217506,1717071032960,-700.0,0.000289,10]
[328217507,1717071032970,-155.0,0.00028955,2]
[328217509,1717071032979,-500.0,0.00028955,7]
[328217511,1717071032988,-500.0,0.00028955,7]
[328217513,1717071032998,-500.0,0.00028955,7]
[328217514,1717071033007,-918.82,0.00028955,7]
[328217515,1717071033015,-500.0,0.00028955,7]
[328217516,1717071033025,-944.72,0.00028955,7]
[328217517,1717071033034,-500.0,0.00028955,7]
[328217518,1717071033043,-500.0,0.00028955,7]
[328217519,1717071033052,-500.0,0.00028955,7]
[328217520,1717071033061,-500.0,0.00028955,7]
[328217521,1717071033071,-500.0,0.00028955,7]
[328217522,1717071033080,-500.0,0.00028955,7]
[328217523,1717071033090,-500.0,0.00028955,7]
[328217525,1717071033099,-500.0,0.00028955,7]
[328217527,1717071033107,-500.0,0.00028955,7]
[328217529,1717071033116,-500.0,0.00028955,7]
[328217531,1717071033128,-500.0,0.00028955,7]
[328217533,1717071033138,-631.32410392,0.00028955,7]
[328217535,1717071033147,-500.0,0.00028955,7]
[328217537,1717071033156,-1261.46,0.00028955,7]
[328217539,1717071033166,-500.0,0.00028955,7]
[328217541,1717071033176,-500.0,0.00028955,7]
[328217543,1717071033185,-500.0,0.00028955,7]
[328217545,1717071033194,-741.48,0.00028955,7]
[328217547,1717071033203,-500.0,0.00028955,7]
[328217549,1717071033215,-1197.91,0.00028955,7]
[328217551,1717071033225,-500.0,0.00028955,7]
[328217553,1717071033234,-500.0,0.00028955,7]
[328217555,1717071033243,-500.0,0.00028955,7]
[328217557,1717071033252,-500.0,0.00028955,7]
[328217559,1717071033261,-752.64,0.00028955,7]
[328217560,1717071033270,-500.0,0.00028955,7]
[328217563,1717071033280,-500.0,0.00028955,7]
[328217565,1717071033291,-500.0,0.00028955,7]
[328217567,1717071033300,-500.0,0.00028955,7]
[328217568,1717071033309,-500.0,0.00028955,7]
[328217569,1717071033318,-500.0,0.00028955,7]
[328217570,1717071033327,-500.0,0.00028955,7]
[328217571,1717071033336,-543.37124184,0.00028956,2]
[328217572,1717071033346,-1274.02294122,0.00028956,2]
[328217573,1717071033356,-500.0,0.00028956,7]
[328217574,1717071033365,-500.0,0.00028956,7]
[328217575,1717071033374,-500.0,0.00028956,7]
[328217576,1717071033384,-500.0,0.00028956,7]
[328217577,1717071033393,-301.80242847,0.00028956,7]
[328217578,1717071033402,-500.0,0.00028956,7]
[328217579,1717071033411,-574.44,0.00028956,7]
[328217580,1717071033421,-500.0,0.00028956,7]
[328217581,1717071033430,-500.0,0.00028956,7]
[328217582,1717071033439,-500.0,0.00028956,7]
[328217583,1717071033448,-500.0,0.00028956,7]
[328217584,1717071033457,-300.75626041,0.00028956,7]
[328217585,1717071033467,-500.0,0.00028956,7]
[328217586,1717071033476,-20000.0,0.00028956,2]
[328217587,1717071033485,-500.0,0.00028956,7]
[328217588,1717071033496,-500.0,0.00028956,7]
[328217589,1717071033505,-500.0,0.00028956,7]
[328217590,1717071033514,-249.08358636,0.00028956,7]
[328217591,1717071033523,-500.0,0.00028956,7]
[328217592,1717071033532,-500.0,0.00028956,7]
[328217593,1717071033541,-500.0,0.00028956,7]
[328217594,1717071033550,-212.01285936,0.00028956,7]
[328217595,1717071033560,-500.0,0.00028956,7]
[328217596,1717071033569,-500.0,0.00028956,7]
[328217597,1717071033578,-500.0,0.00028956,7]
[328217598,1717071033587,-500.0,0.00028956,7]
[328217599,1717071033597,-500.0,0.00028956,2]
[328217600,1717071033606,-500.0,0.00028956,2]
[328217601,1717071033615,-500.0,0.00028956,7]
[328217602,1717071033624,-500.0,0.00028956,7]
[328217603,1717071033633,-500.0,0.00028956,7]
[328217604,1717071033642,-500.0,0.00028956,7]
[328217605,1717071033651,-500.0,0.00028956,7]
[328217606,1717071033660,-500.0,0.00028956,7]
[328217607,1717071033669,-500.0,0.00028956,7]
[328217608,1717071033678,-500.0,0.00028956,7]
[328217609,1717071033687,-587.33,0.00028956,7]
[328217610,1717071033696,-500.0,0.00028956,7]
[328217611,1717071033706,-500.0,0.00028956,7]
[328217612,1717071033715,-500.0,0.00028956,7]
[328217613,1717071033724,-500.0,0.00028956,7]
[328217614,1717071033733,-500.0,0.00028956,7]
[328217615,1717071033742,-500.0,0.00028956,7]
[328217616,1717071033751,-500.0,0.00028956,7]
[328217617,1717071033761,-150.0,0.00028956,7]
[328217618,1717071033770,-500.0,0.00028956,7]
[328217619,1717071033779,-500.0,0.00028956,7]
[328217620,1717071033788,-500.0,0.00028956,7]
[328217621,1717071033797,-536.58,0.00028956,7]
[328217622,1717071033806,-500.0,0.00028956,7]
[328217623,1717071033815,-500.0,0.00028956,7]
[328217624,1717071033824,-500.0,0.00028956,7]
[328217625,1717071033834,-308.30370229,0.00028956,7]
[328217626,1717071033843,-504.68,0.00028956,7]
[328217627,1717071033852,-1776.47,0.00028956,7]
[328217628,1717071033862,-500.0,0.00028956,7]
[328217629,1717071033871,-500.0,0.00028956,7]
[328217630,1717071033880,-500.0,0.00028956,7]
[328217631,1717071033890,-532.15,0.00028956,7]
[328217632,1717071033899,-500.0,0.00028956,7]
[328217633,1717071033908,-500.0,0.00028956,7]
[328217634,1717071033918,-500.0,0.00028956,7]
[328217635,1717071033928,-500.0,0.00028956,7]
[328217636,1717071033937,-500.0,0.00028956,7]
[328217637,1717071033947,-500.0,0.00028956,7]
[328217638,1717071033956,-500.0,0.00028956,7]
[328217639,1717071033967,-500.0,0.00028956,7]
[328217640,1717071033976,-500.0,0.00028956,7]
[328217641,1717071033985,-534.34,0.00028956,7]
[328217642,1717071033995,-500.0,0.00028956,7]
[328217643,1717071034005,-500.0,0.00028956,7]
[328217644,1717071034014,-500.0,0.00028956,7]
[328217645,1717071034023,-500.0,0.00028956,7]
[328217646,1717071034033,-500.0,0.00028956,7]
[328217647,1717071034042,-500.0,0.00028956,7]
[328217648,1717071034052,-500.0,0.00028956,7]
[328217649,1717071034061,-1048.43,0.00028956,7]
[328217650,1717071034070,-500.0,0.00028956,7]
[328217651,1717071034079,-226.84871723,0.00028956,7]
[328217652,1717071034089,-500.0,0.00028956,7]
[328217653,1717071034098,-500.0,0.00028956,7]
[328217654,1717071034108,-500.0,0.00028956,7]
[328217655,1717071034118,-500.0,0.00028956,7]
[328217656,1717071034130,-500.0,0.00028956,7]
[328217657,1717071034140,-500.0,0.00028956,7]
[328217658,1717071034149,-500.0,0.00028956,7]
[328217659,1717071034159,-500.0,0.00028956,7]
[328217660,1717071034170,-500.0,0.00028956,7]
[328217661,1717071034180,-500.0,0.00028956,7]
[328217662,1717071034192,-500.0,0.00028956,7]
[328217663,1717071034202,-500.0,0.00028956,7]
[328217664,1717071034214,-500.0,0.00028956,7]
[328217665,1717071034224,-248.3814175,0.00028956,7]
[328217666,1717071034234,-500.0,0.00028956,7]
[328217667,1717071034243,-500.0,0.00028956,7]
[328217668,1717071034253,-500.0,0.00028956,7]
[328217669,1717071034263,-500.0,0.00028956,7]
[328217670,1717071034273,-500.0,0.00028956,7]
[328217671,1717071034282,-500.0,0.00028956,7]
[328217672,1717071034291,-500.0,0.00028956,7]
[328217673,1717071034301,-500.0,0.00028956,7]
[328217674,1717071034311,-520.99,0.00028957,7]
[328217675,1717071034320,-500.0,0.00028957,7]
[328217676,1717071034330,-500.0,0.00028957,7]
[328217677,1717071034339,-500.0,0.00028957,7]
[328217678,1717071034348,-292.38461224,0.00028957,7]
[328217679,1717071034359,-500.0,0.00028957,7]
[328217680,1717071034368,-513.91,0.00028957,7]
[328217681,1717071034378,-1018.56,0.00028957,5]
[328217682,1717071034387,-500.0,0.00028957,2]
[328217683,1717071034397,-500.0,0.00028957,7]
[328217684,1717071034407,-500.0,0.00028957,7]
[328217685,1717071034416,-500.0,0.00028957,7]
[328217686,1717071034426,-262.81029148,0.00028957,7]
[328217687,1717071034436,-181.0,0.00029029,5]
[328217688,1717071034445,-1000.0,0.00029029,2]
[328217689,1717071034455,-158.43787398,0.0002903,2]
[328217690,1717071034464,-323.88369223,0.0002903,2]
[328217691,1717071034474,-12010.9499,0.0002903,2]
[328217692,1717071034484,-161.2433,0.0002903,2]
[328217693,1717071034493,-7500.0,0.0002903,2]
[328217694,1717071034503,-150.0,0.00029056,2]
[328217695,1717071034521,-150.0,0.00029061,2]
[328217696,1717071034533,-150.0,0.00029061,2]
[328217697,1717071034544,-150.0,0.000291,2]
[328217698,1717071034554,-150.0,0.000291,6]
[328217699,1717071034563,-150.0,0.00029112,2]
[328217700,1717071034573,-1160.61714695,0.0002912,10]
[328217701,1717071034583,-163.18099662,0.0002912,2]
[328217702,1717071034593,-150.98,0.0002912,2]
[328217703,1717071034603,-1527.20049393,0.00029128,2]
[328217704,1717071034612,-963.96545382,0.00029128,2]
[328217705,1717071034622,-268.55232379,0.00029128,2]
[328217706,1717071034632,-162.1014602,0.00029129,2]
[328217707,1717071034642,-500.0,0.00029129,7]
[328217708,1717071034652,-500.0,0.00029129,7]
[328217709,1717071034662,-489.99158714,0.00029129,7]
[328217710,1717071034672,-21383.07428627,0.0002913,13]
[328217711,1717071034681,-121469.53048693,0.0002913,10]
[328217712,1717071034867,-679.73,0.0002913,10]
[328217713,1717071034889,-393.9,0.0002913,10]
[328217714,1717071034901,-12049.53630709,0.0002913,10]
[328217715,1717071034920,-9221.26852636,0.0002913,10]
[328217716,1717071034932,-266.95294903,0.0002913,10]
[328217717,1717071034945,-1414.36815207,0.0002913,10]
[328217718,1717071034958,-136477.0000001,0.0002913,10]
[328217719,1717071034971,-3410.39593815,0.0002913,10]
[328217720,1717071034994,-150.0,0.0002886,2]
[328217721,1717071035003,-183.17999998,0.0002913,10]
[328217722,1717071035014,-586.22816668,0.0002913,10]
[328217723,1717071035042,-1913.12,0.00028955,7]
[328217724,1717071035051,-7163.23471616,0.0002913,10]
[328217725,1717071035063,-4799.4,0.0002913,10]
[328217726,1717071035087,-150.0,0.00028866,2]
[328217727,1717071035096,-504943.46755109,0.0002913,10]
[328217728,1717071035120,-2001.76069057,0.0002913,10]
[328217734,1717071038420,-500.0,0.00028955,7]
[328217735,1717071038429,-635.53216571,0.00028956,7]
[328217736,1717071038442,-195.34783429,0.00028956,7]
[328217737,1717071038451,-255.54548796,0.0002913,10]
[328217738,1717071038463,-272.32466048,0.0002913,10]
[328217739,1717071038475,-324.95664198,0.0002913,10]
[328217740,1717071038487,-251.16883427,0.0002913,10]
[328217741,1717071038498,-2330.71214622,0.0002913,10]
[328217742,1717071038514,-22566.14939622,0.0002913,10]
[328217762,1717071040978,-500.0,0.00028955,7]
[328217763,1717071040987,-17788.11992441,0.0002913,10]
[328217764,1717071040997,-299.76161759,0.0002913,2]
[328217765,1717071041007,-3000.0,0.0002913,2]
[328217766,1717071041016,-8362.518458,0.00029198,2]
[328217767,1717071041036,-16637.481542,0.00029198,2]
[328217768,1717071041046,-150.0,0.00029206,2]
[328217769,1717071041055,-150.0,0.0002921,2]
[328217770,1717071041065,-500.0,0.00029229,7]
[328217771,1717071041074,-500.0,0.00029229,7]
[328217772,1717071041083,-500.0,0.00029229,7]
[328217773,1717071041092,-918.82,0.00029229,7]
[328217774,1717071041102,-500.0,0.00029229,7]
[328217775,1717071041111,-944.72,0.00029229,7]
[328217776,1717071041120,-500.0,0.00029229,7]
[328217777,1717071041133,-500.0,0.00029229,7]
[328217778,1717071041142,-500.0,0.00029229,7]
[328217779,1717071041152,-500.0,0.00029229,7]
[328217780,1717071041161,-500.0,0.00029229,7]
[328217781,1717071041171,-500.0,0.00029229,7]
[328217782,1717071041181,-500.0,0.00029229,7]
[328217783,1717071041190,-500.0,0.00029229,7]
[328217784,1717071041199,-500.0,0.00029229,7]
[328217785,1717071041210,-500.0,0.00029229,7]
[328217786,1717071041221,-500.0,0.00029229,7]
[328217787,1717071041230,-1261.46,0.00029229,7]
[328217788,1717071041240,-447.39114283,0.00029229,7]
[328217789,1717071041249,-500.0,0.00029229,7]
[328217790,1717071041258,-500.0,0.00029229,7]
[328217791,1717071041268,-741.48,0.00029229,7]
[328217792,1717071041277,-500.0,0.00029229,7]
[328217793,1717071041286,-1197.91,0.00029229,7]
[328217794,1717071041295,-500.0,0.00029229,7]
[328217795,1717071041305,-500.0,0.00029229,7]
[328217796,1717071041315,-500.0,0.00029229,7]
[328217797,1717071041324,-500.0,0.00029229,7]
[328217798,1717071041334,-752.64,0.00029229,7]
[328217799,1717071041343,-500.0,0.00029229,7]
[328217800,1717071041355,-205.79918307,0.00029229,7]
[328217801,1717071041365,-500.0,0.00029229,7]
[328217802,1717071041374,-500.0,0.00029229,7]
[328217803,1717071041383,-500.0,0.00029229,7]
[328217804,1717071041393,-500.0,0.00029229,7]
[328217805,1717071041402,-500.0,0.00029229,7]
[328217806,1717071041412,-1913.12,0.00029229,7]
[328217807,1717071041421,-500.0,0.00029229,7]
[328217808,1717071041430,-500.0,0.00029229,7]
[328217809,1717071041439,-500.0,0.0002923,7]
[328217810,1717071041448,-500.0,0.0002923,7]
[328217811,1717071041458,-392.13910298,0.0002923,7]
[328217812,1717071041501,-182.30089702,0.0002923,7]
[328217813,1717071041510,-500.0,0.0002923,7]
[328217814,1717071041519,-500.0,0.0002923,7]
[328217815,1717071041529,-500.0,0.0002923,7]
[328217816,1717071041538,-299.02846873,0.0002923,7]
[328217817,1717071041554,-200.97153127,0.0002923,7]
[328217818,1717071041563,-500.0,0.0002923,7]
[328217819,1717071041572,-500.0,0.0002923,7]
[328217820,1717071041581,-500.0,0.0002923,2]
[328217821,1717071041590,-500.0,0.0002923,7]
[328217822,1717071041599,-500.0,0.0002923,7]
[328217823,1717071041608,-500.0,0.0002923,7]
[328217824,1717071041617,-500.0,0.0002923,7]
[328217825,1717071041626,-500.0,0.0002923,7]
[328217826,1717071041635,-587.33,0.0002923,7]
[328217827,1717071041822,-500.0,0.0002923,7]
[328217828,1717071041831,-500.0,0.0002923,7]
[328217829,1717071041840,-500.0,0.0002923,7]
[328217830,1717071041849,-500.0,0.0002923,7]
[328217831,1717071041858,-500.0,0.0002923,7]
[328217832,1717071041867,-500.0,0.0002923,7]
[328217833,1717071041876,-150.0,0.0002923,7]
[328217834,1717071041885,-385.37,0.0002923,7]
[328217835,1717071041894,-500.0,0.0002923,7]
[328217836,1717071041903,-500.0,0.0002923,7]
[328217837,1717071041911,-500.0,0.0002923,7]
[328217838,1717071041921,-500.0,0.0002923,7]
[328217839,1717071041930,-504.68,0.0002923,7]
[328217840,1717071041938,-200.8088499,0.0002923,7]
[328217842,1717071041950,-1130.54686907,0.0002923,7]
[328217844,1717071041965,-445.11428103,0.0002923,7]
[328217845,1717071041974,-484.88571897,0.0002923,7]
[328217846,1717071041988,-15.11428103,0.0002923,7]
[328217847,1717071041997,-500.0,0.0002923,7]
[328217848,1717071042006,-49.88808322,0.0002923,7]
[328217861,1717071043436,-482.26191678,0.0002923,7]
[328217862,1717071043446,-500.0,0.0002923,7]
[328217863,1717071043455,-140.0376769,0.0002923,7]
[328217864,1717071043932,-240.63482571,0.0002923,7]
[328217866,1717071043942,-500.0,0.0002923,7]
[328217868,1717071043951,-500.0,0.0002923,7]
[328217870,1717071043960,-500.0,0.0002923,7]
[328217872,1717071043971,-500.0,0.0002923,7]
[328217874,1717071043980,-500.0,0.0002923,7]
[328217877,1717071043989,-500.0,0.0002923,7]
[328217879,1717071043998,-102.3498408,0.0002923,7]
[328217881,1717071044009,-431.9901592,0.0002923,7]
[328217882,1717071044018,-246.02318112,0.0002923,7]
[328217895,1717071046487,-500.0,0.00028955,7]
[328217896,1717071046496,-500.0,0.00028955,7]
[328217897,1717071046505,-500.0,0.00028956,7]
[328217898,1717071046514,-500.0,0.00029229,7]
[328217899,1717071046523,-99.01616,0.00029229,7]
[328217900,1717071046534,-337.08969517,0.00029229,7]
[328217901,1717071046708,-63.89414483,0.00029229,7]
[328217902,1717071046718,-253.97681888,0.0002923,7]
[328217903,1717071046728,-500.0,0.0002923,7]
[328217904,1717071046737,-500.0,0.0002923,7]
[328217905,1717071046746,-51.98903629,0.0002923,7]
[328217906,1717071265250,-1100.0,0.000299,10]
[328217907,1717071265282,-3577.32528582,0.00030126,10]
[328217908,1717071265307,-1847.76830656,0.00030181,10]
[328217909,1717071265337,-3577.32528582,0.00030565,10]
[328217910,1717071265365,-1847.76830656,0.00030613,10]
[328217911,1717071265395,-150.0,0.00031,11]
[328217912,1717071265419,-3577.32528582,0.00031004,10]
[328217913,1717071265446,-1847.76830656,0.00031044,10]
[328217914,1717071265478,-3577.32528582,0.00031444,10]
[328217915,1717071265502,-1847.76830656,0.00031475,10]
[328217916,1717071265531,-3577.32528582,0.00031883,10]
[328217917,1717071265555,-1500.0,0.000319,11]
[328217918,1717071265578,-1847.76830656,0.00031906,10]
[328217919,1717071265604,-1500.0,0.00032,20]
[328217920,1717071265626,-1191.44685825,0.00032,10]
[328217921,1717071265660,-1900.0,0.000323,11]
[328217922,1717071265684,-3577.32528582,0.00032322,10]
[328217923,1717071265707,-1847.76830656,0.00032338,10]
[328217924,1717071265734,-300.0,0.000324,11]
[328217925,1717071265758,-5057.8238761,0.000325,10]
[328217926,1717071265782,-300.0,0.000325,11]
[328217927,1717071265807,-300.0,0.000326,11]
[328217928,1717071265831,-300.0,0.000327,11]
[328217929,1717071265854,-3577.32528582,0.00032761,10]
[328217930,1717071266054,-1847.76830656,0.00032769,10]
[328217931,1717071266082,-1041.0,0.000328,11]
[328217932,1717071266109,-1000.0,0.00032877,13]
[328217933,1717071266131,-1000.0,0.00032877,13]
[328217934,1717071266153,-1000.0,0.00032877,13]
[328217935,1717071266176,-1000.0,0.00032877,13]
[328217936,1717071266200,-1000.0,0.00032877,13]
[328217937,1717071266228,-1000.0,0.00032877,13]
[328217938,1717071266253,-1007.0,0.00032877,13]
[328217939,1717071266277,-1000.0,0.00032877,13]
[328217940,1717071266302,-255.0,0.00032877,13]
[328217941,1717071266325,-595.0,0.00032877,13]
[328217942,1717071266348,-1000.0,0.00032877,13]
[328217943,1717071266372,-1000.0,0.00032877,13]
[328217944,1717071266396,-1000.0,0.00032877,13]
[328217945,1717071266419,-1000.0,0.00032877,13]
[328217946,1717071266444,-1000.0,0.00032877,13]
[328217947,1717071266467,-1000.0,0.00032877,13]
[328217948,1717071266490,-1000.0,0.00032877,13]
[328217949,1717071266514,-1000.0,0.00032877,13]
[328217950,1717071266538,-1000.0,0.00032877,13]
[328217951,1717071266561,-1000.0,0.00032877,13]
[328217952,1717071266584,-300.0,0.00032877,10]
[328217953,1717071266608,-321.80566066,0.00032877,10]
[328217954,1717071266634,-302.54365804,0.00032877,10]
[328217955,1717071266659,-304.22069139,0.00032899,10]
[328217956,1717071266684,-1446.95011064,0.000329,30]
[328217957,1717071266711,-839.01051713,0.0003298,31]
[328217958,1717071266734,-2000.0,0.00032986,30]
[328217959,1717071266758,-467.57,0.00033,14]
[328217960,1717071266781,-401.39933704,0.00033,15]
[328217961,1717071266804,-7638.2249274,0.00033,30]
[328217962,1717071266832,-200.0,0.00033,10]
[328217963,1717071266857,-400.0,0.00033,30]
[328217964,1717071266883,-1800.0,0.00033,34]
[328217965,1717071266910,-395.648938,0.00033,15]
[328217966,1717071266938,-900.0,0.00033,12]
[328217967,1717071266966,-629.50689201,0.00033148,46]
[328217968,1717071266996,-3577.32528582,0.000332,10]
[328217969,1717071267020,-1847.76830656,0.000332,10]
[328217970,1717071267046,-806.13705877,0.00033279,20]
[328217971,1717071267073,-323.0,0.000336,22]
[328217972,1717071267097,-825.3675198,0.0003368,30]